bitfinex/quotes_SOLUSD_20241223
["timestamp","ask_amount","ask_price","bid_price","bid_amount"]
[1734965982522,0.33643696,184.11,183.9,0.81502813]
[1734965982703,6.1463,184.1,183.95,20.43366399]
[1734965983019,20.0,184.06,183.94,20.43366399]
[1734965983228,0.33643696,184.05,183.95,20.43366399]
[1734965983405,20.0,184.07,183.95,20.43366399]
[1734965983611,1.69463696,184.06,183.95,20.43366399]
[1734965984119,1.69463696,184.06,183.94,20.43366399]
[1734965984697,1.69463696,184.06,183.93,20.43366399]
[1734965985392,20.0,184.05,183.93,20.43366399]
[1734965985728,21.3584,184.03,183.92,21.24878851]
[1734965986023,0.33643696,184.02,183.92,21.24878851]
[1734965986599,21.3584,184.03,183.93,20.43366399]
[1734965986798,21.3584,184.03,183.93,21.24883692]
[1734965987226,1.3586,184.01,183.93,0.81517293]
[1734965987426,1.3586,184.01,183.93,21.24883692]
[1734965988530,1.3584,184.04,183.95,20.43366399]
[1734965988859,1.3584,184.04,183.96,20.43366399]
[1734965990624,1.3584,184.04,183.93,20.43366399]
[1734965990625,0.33643696,184.03,183.93,20.43366399]
[1734965991126,0.33643696,184.03,183.91,20.43366399]
[1734965991333,0.33643696,184.03,183.92,20.43366399]
[1734965991700,0.33643696,184.03,183.91,20.43366399]
[1734965991901,20.0,184.0,183.89,0.6787651]
[1734965992131,0.33643696,183.99,183.89,0.6787651]
[1734965992432,20.33643696,184.02,183.92,20.43366399]
[1734965992735,1.3586,184.01,183.92,20.43366399]
[1734965993036,1.3586,184.01,183.89,1.49415421]
[1734965993037,3.05263696,184.08,183.93,21.24893971]
[1734965993257,3.05263696,184.08,183.95,20.43366399]
[1734965993258,20.0,184.05,183.95,20.43366399]
[1734965993835,0.33643696,184.04,183.94,20.43366399]
[1734965994031,0.33643696,184.04,183.95,20.43366399]
[1734965994206,1.3584,184.03,183.95,20.43366399]
[1734965994413,1.3584,184.03,183.95,21.24876962]
[1734965994916,1.3584,184.03,183.95,0.81510563]
[1734965995630,2.7163,184.07,183.96,20.43366399]
[1734965995815,1.69463696,184.06,183.96,20.43366399]
[1734965996016,1.69463696,184.06,183.95,0.81510563]
[1734965996201,1.69463696,184.06,183.95,20.43366399]
[1734965996401,1.69463696,184.06,183.94,20.43366399]
[1734965997131,43.776884,184.05,183.93,20.43366399]
[1734965997304,0.33643696,184.04,183.93,20.43366399]
[1734965997916,0.33643696,184.04,183.94,20.43366399]
[1734965998616,1.3584,184.03,183.94,20.43366399]
[1734965998811,24.11332096,184.02,183.89,0.6787651]
[1734965999019,20.0,183.99,183.89,0.6787651]
[1734965999217,24.11332096,183.98,183.89,0.6787651]
[1734965999527,20.0,183.94,183.89,0.6787651]
[1734965999711,0.33643696,183.93,183.89,0.6787651]
[1734966000424,20.0,183.9,183.74,0.81573262]
[1734966000605,20.0,183.86,183.73,20.43366399]
[1734966000940,0.33643696,183.85,183.73,20.43366399]
[1734966001129,0.33643696,183.85,183.76,20.43366399]
[1734966001435,1.3595,183.89,183.81,20.43366399]
[1734966001606,23.776884,183.93,183.82,0.81576543]
[1734966001806,0.33643696,183.92,183.82,20.43366399]
[1734966002033,0.33643696,183.92,183.81,20.43366399]
[1734966002247,0.33643696,183.92,183.8,0.12549]
[1734966002535,25.136384,183.89,183.79,20.43366399]
[1734966002830,1.69593696,183.89,183.79,20.43366399]
[1734966003133,1.3595,183.89,183.8,0.12549]
[1734966003311,3.05503696,183.92,183.8,21.37501585]
[1734966003514,1.3592,183.93,183.83,20.43366399]
[1734966003709,1.3592,183.93,183.84,0.94108426]
[1734966003912,1.3592,183.93,183.84,21.37474825]
[1734966004226,7.5593,183.97,183.89,0.12549]
[1734966004409,6.2004,183.97,183.89,0.12549]
[1734966004615,0.33643696,183.96,183.83,20.43366399]
[1734966004834,0.33643696,183.96,183.82,20.43366399]
[1734966005015,0.33643696,183.96,183.8,20.43366399]
[1734966005216,0.33643696,183.96,183.79,20.43366399]
[1734966005415,0.33643696,183.96,183.78,20.43366399]
[1734966005616,20.0,183.94,183.8,0.12549]
[1734966005927,20.0,183.9,183.8,0.12549]
[1734966006133,24.11332096,183.89,183.76,20.43366399]
[1734966006316,24.11332096,183.89,183.72,20.43366399]
[1734966006317,23.776884,183.85,183.72,20.43366399]
[1734966006643,21.36,183.82,183.71,20.43366399]
[1734966006836,20.0,183.78,183.68,20.43366399]
[1734966007342,0.33643696,183.77,183.67,20.43366399]
[1734966007637,0.33643696,183.79,183.69,20.43366399]
[1734966007842,20.33643696,183.8,183.7,21.11030889]
[1734966008040,23.776884,183.79,183.7,0.6766449]
[1734966008220,20.0,183.76,183.7,0.6766449]
[1734966008539,0.33643696,183.75,183.7,0.6766449]
[1734966009631,24.11332096,183.75,183.7,0.6766449]
[1734966010642,43.776884,183.71,183.7,0.6766449]
[1734966011139,20.0,183.71,183.7,0.6766449]
[1734966011350,43.776884,183.71,183.7,0.6766449]
[1734966011551,43.776884,183.71,183.52,21.27434466]
[1734966011552,20.0,183.67,183.57,20.43366399]
[1734966011714,1.361,183.69,183.62,20.43366399]
[1734966012021,2.721,183.76,183.65,20.43366399]
[1734966012220,0.33643696,183.75,183.62,20.43366399]
[1734966012418,0.33643696,183.75,183.6,20.43366399]
[1734966012623,0.33643696,183.75,183.61,20.43366399]
[1734966012826,1.3607,183.73,183.6,20.43366399]
[1734966013033,0.33643696,183.72,183.6,20.43366399]
[1734966013448,0.33643696,183.72,183.58,20.43366399]
[1734966013649,0.33643696,183.72,183.6,20.43366399]
[1734966013947,1.3608,183.71,183.59,20.43366399]
[1734966014125,0.33643696,183.7,183.59,20.43366399]
[1734966014323,0.33643696,183.7,183.6,20.55915399]
[1734966014523,0.33643696,183.82,183.67,20.43366399]
[1734966014726,0.33643696,183.82,183.7,20.43366399]
[1734966014934,1.69643696,183.82,183.61,0.81663514]
[1734966015134,4.41643696,183.82,183.65,20.43366399]
[1734966015357,0.12549,183.81,183.65,20.43366399]
[1734966015548,0.33643696,183.8,183.64,20.43366399]
[1734966015735,0.33643696,183.8,183.63,20.43366399]
[1734966015950,1.48569,183.79,183.61,20.43366399]
[1734966016253,20.0,183.71,183.57,20.43366399]
[1734966016454,20.0,183.71,183.62,20.43366399]
[1734966016621,20.0,183.71,183.65,0.12549]
[1734966016817,20.0,183.71,183.62,20.43366399]
[1734966017044,0.46192696,183.7,183.52,0.6766449]
[1734966017350,0.33643696,183.7,183.54,20.43366399]
[1734966017656,0.33643696,183.7,183.56,20.43366399]
[1734966017844,0.33643696,183.7,183.57,0.12549]
[1734966018027,1.3609,183.69,183.57,0.12549]
[1734966018250,0.33643696,183.68,183.57,0.12549]
[1734966018853,0.33643696,183.68,183.54,20.43366399]
[1734966019153,20.0,183.64,183.52,0.6766449]
[1734966019335,20.0,183.64,183.56,20.43366399]
[1734966019524,8.1316,183.67,183.57,20.55915399]
[1734966019720,8.1316,183.67,183.61,0.12549]
[1734966019948,6.5539,183.67,183.6,20.43366399]
[1734966020255,6.5539,183.67,183.53,0.81700438]
[1734966020256,1.90263696,183.73,183.61,20.55915399]
[1734966020546,7.403,183.74,183.66,20.43366399]
[1734966020753,6.0424,183.74,183.67,0.12549]
[1734966021165,6.0424,183.74,183.67,20.55915399]
[1734966021324,6.5334,183.8,183.71,0.12549]
[1734966021523,7.7953,183.91,183.73,0.12549]
[1734966021751,0.33643696,183.9,183.73,20.43366399]
[1734966021924,4.0786,183.88,183.7,20.43366399]
[1734966022253,0.33643696,183.87,183.73,33.44653789]
[1734966022633,0.33643696,183.87,183.75,0.12549]
[1734966022955,0.33643696,183.87,183.73,33.32104789]
[1734966023140,0.33643696,183.87,183.72,33.32104789]
[1734966023344,0.12549,183.86,183.65,33.32104789]
[1734966023566,0.12549,183.82,183.65,33.32104789]
[1734966023737,0.46192696,183.82,183.65,33.32104789]
[1734966023943,0.46192696,183.82,183.66,0.12549]
[1734966024162,1.3601,183.81,183.68,0.12549]
[1734966024337,0.33643696,183.8,183.65,33.32104789]
[1734966024536,20.0,183.76,183.65,33.32104789]
[1734966024835,0.33643696,183.75,183.66,0.12549]
[1734966025037,20.0,183.76,183.66,0.12549]
[1734966025233,0.33643696,183.75,183.66,0.12549]
[1734966025440,0.33643696,183.75,183.63,33.44653789]
[1734966025635,0.33643696,183.75,183.61,33.32104789]
[1734966025859,0.33643696,183.75,183.59,33.32104789]
[1734966026064,1.3606,183.74,183.57,33.32104789]
[1734966026300,0.33643696,183.73,183.59,33.32104789]
[1734966026658,0.33643696,183.73,183.57,33.32104789]
[1734966026853,0.33643696,183.73,183.59,33.32104789]
[1734966027052,1.3607,183.72,183.6,0.12549]
[1734966027259,1.3607,183.72,183.62,0.12549]
[1734966027462,1.3607,183.72,183.63,33.32104789]
[1734966028040,1.3607,183.72,183.62,0.12549]
[1734966028345,1.69693696,183.75,183.63,33.32104789]
[1734966029367,1.69693696,183.75,183.64,0.12549]
[1734966029566,1.69693696,183.75,183.61,0.8165058]
[1734966029766,0.12549,183.74,183.59,33.32104789]
[1734966029969,0.33643696,183.73,183.58,33.32104789]
[1734966030379,0.33643696,183.73,183.55,0.81675943]
[1734966030380,0.33643696,183.73,183.59,33.32104789]
[1734966030680,0.33643696,183.73,183.6,33.32104789]
[1734966030857,1.3605,183.75,183.6,33.32104789]
[1734966030858,0.46192696,183.74,183.6,33.32104789]
[1734966031366,4.0819,183.73,183.58,33.32104789]
[1734966031541,0.12549,183.71,183.58,33.32104789]
[1734966031740,0.33643696,183.72,183.58,33.32104789]
[1734966032357,4.0824,183.71,183.56,33.44653789]
[1734966032565,0.33643696,183.7,183.58,33.32104789]
[1734966033076,0.33643696,183.7,183.56,0.12549]
[1734966033077,20.0,183.65,183.54,33.32104789]
[1734966033278,0.33643696,183.64,183.52,33.99769279]
[1734966033582,0.33643696,183.64,183.52,0.6766449]
[1734966033882,0.33643696,183.64,183.52,33.99769279]
[1734966034375,1.3614,183.63,183.52,33.99769279]
[1734966034574,1.3614,183.63,183.52,0.6766449]
[1734966034575,0.33643696,183.62,183.52,0.6766449]
[1734966034955,0.12549,183.61,183.52,0.6766449]
[1734966035164,0.33643696,183.62,183.52,0.6766449]
[1734966035165,0.12549,183.57,183.52,4.49e-05]
[1734966035356,20.0,183.55,183.52,4.49e-05]
[1734966035552,0.33643696,183.54,183.52,4.49e-05]
[1734966035780,0.33643696,183.54,183.4,33.32104789]
[1734966036279,1.66439,183.53,183.36,33.32104789]
[1734966036448,1.69863696,183.52,183.36,33.32104789]
[1734966036983,0.12549,183.51,183.36,33.32104789]
[1734966037289,20.0,183.45,183.34,33.99769279]
[1734966037451,0.33643696,183.44,183.34,0.6766449]
[1734966037894,0.33643696,183.44,183.34,33.99769279]
[1734966038059,0.33643696,183.44,183.34,0.6766449]
[1734966038262,0.46192696,183.49,183.34,0.6766449]
[1734966038591,20.0,183.43,183.34,0.6766449]
[1734966038759,0.33643696,183.42,183.34,0.6766449]
[1734966038958,0.12549,183.41,183.34,0.6766449]
[1734966039167,1.74819,183.39,183.24,33.32104789]
[1734966039365,0.12549,183.37,183.2,33.32104789]
[1734966039662,0.33643696,183.36,183.21,0.81841034]
[1734966039983,0.33643696,183.36,183.22,33.32104789]
[1734966040362,1.3635,183.35,183.22,33.32104789]
[1734966040561,0.33643696,183.34,183.22,33.32104789]
[1734966040898,20.0,183.3,183.17,33.32104789]
[1734966041067,0.33643696,183.29,183.16,0.6766449]
[1734966041771,0.33643696,183.29,183.17,34.13967347]
[1734966041964,20.0,183.3,183.19,33.32104789]
[1734966042158,0.33643696,183.32,183.21,33.32104789]
[1734966042359,6.4978,183.33,183.24,0.12549]
[1734966042600,1.3635,183.35,183.24,0.12549]
[1734966042774,0.33643696,183.38,183.26,0.12549]
[1734966043161,0.33643696,183.38,183.25,33.32104789]
[1734966043469,0.33643696,183.38,183.28,0.12549]
[1734966043792,0.33643696,183.38,183.27,33.32104789]
[1734966043985,0.33643696,183.38,183.25,33.32104789]
[1734966044181,20.0,183.36,183.3,0.12549]
[1734966044487,2.7259,183.43,183.29,33.32104789]
[1734966044488,1.3629,183.43,183.31,33.32104789]
[1734966044793,0.33643696,183.42,183.31,33.32104789]
[1734966045398,0.33643696,183.42,183.27,33.32104789]
[1734966045690,0.33643696,183.42,183.29,33.32104789]
[1734966046588,1.48849,183.41,183.25,33.32104789]
[1734966046794,0.12549,183.39,183.25,33.32104789]
[1734966046977,0.33643696,183.38,183.23,33.32104789]
[1734966047164,0.12549,183.37,183.23,33.32104789]
[1734966047366,6.4074,183.36,183.27,33.32104789]
[1734966047692,1.363,183.41,183.33,0.12549]
[1734966047995,1.3627,183.45,183.37,33.32104789]
[1734966048289,1.3627,183.45,183.36,0.12549]
[1734966048991,1.69883696,183.49,183.38,0.12549]
[1734966049360,1.69883696,183.49,183.4,0.12549]
[1734966050193,1.69883696,183.49,183.37,33.32104789]
[1734966050486,1.69883696,183.49,183.35,33.32104789]
[1734966050487,20.0,183.47,183.35,33.32104789]
[1734966050689,0.33643696,183.46,183.35,33.32104789]
[1734966051488,0.33643696,183.46,183.36,0.12549]
[1734966051692,1.3624,183.49,183.41,33.32104789]
[1734966051893,1.69883696,183.49,183.41,33.32104789]
[1734966052198,1.69883696,183.49,183.4,0.12549]
[1734966052490,1.69883696,183.49,183.39,33.32104789]
[1734966052919,6.4188,183.55,183.46,0.12549]
[1734966053072,6.4188,183.55,183.48,0.12549]
[1734966053401,1.3619,183.57,183.49,33.32104789]
[1734966053574,6.4325,183.58,183.49,33.32104789]
[1734966053969,1.5774,183.6,183.5,0.12549]
[1734966054174,1.3616,183.61,183.5,0.12549]
[1734966054483,0.33643696,183.59,183.46,33.32104789]
[1734966055274,1.3617,183.59,183.48,33.32104789]
[1734966055480,0.33643696,183.58,183.48,33.32104789]
[1734966055681,0.33643696,183.58,183.49,0.12549]
[1734966055885,0.33643696,183.58,183.48,33.32104789]
[1734966056168,0.33643696,183.58,183.41,33.32104789]
[1734966056169,0.12549,183.57,183.41,33.32104789]
[1734966056389,0.33643696,183.56,183.41,33.32104789]
[1734966056590,1.6046,183.54,183.37,33.32104789]
[1734966056790,6.376,183.52,183.37,33.32104789]
[1734966056997,20.0,183.49,183.39,33.32104789]
[1734966057575,20.0,183.49,183.4,0.12549]
[1734966058075,20.0,183.49,183.42,0.12549]
[1734966058885,20.0,183.49,183.4,0.12549]
[1734966060298,20.0,183.49,183.39,33.32104789]
[1734966060299,0.33643696,183.48,183.39,33.32104789]
[1734966060474,0.33643696,183.48,183.37,33.32104789]
[1734966061602,1.69893696,183.48,183.38,0.12549]
[1734966061805,1.69893696,183.48,183.33,33.32104789]
[1734966062315,1.69893696,183.48,183.38,0.12549]
[1734966062514,20.0,183.49,183.38,0.12549]
[1734966062670,20.0,183.49,183.4,0.12549]
[1734966063005,6.0219,183.59,183.46,0.12549]
[1734966063183,1.69823696,183.58,183.48,0.12549]
[1734966063383,6.0219,183.59,183.5,0.12549]
[1734966064370,1.5279,183.61,183.5,0.12549]
[1734966064575,2.722,183.69,183.52,33.44653789]
[1734966064576,6.6458,183.65,183.52,33.44653789]
[1734966064789,0.33643696,183.64,183.52,33.44653789]
[1734966065002,1.69773696,183.64,183.5,33.32104789]
[1734966065209,4.42043696,183.64,183.48,33.32104789]
[1734966065404,5.84161755,183.63,183.44,33.32104789]
[1734966065593,5.84161755,183.63,183.39,21.5284]
[1734966065594,0.33643696,183.62,183.46,33.32104789]
[1734966065909,5.84161755,183.63,183.45,0.81727266]
[1734966065910,0.33643696,183.63,183.55,0.12549]
[1734966066097,1.361,183.68,183.59,0.12549]
[1734966066483,0.33643696,183.67,183.54,33.32104789]
[1734966066877,0.33643696,183.67,183.52,0.8168902]
[1734966067087,0.33643696,183.67,183.52,33.32104789]
[1734966067287,0.33643696,183.67,183.5,33.44653789]
[1734966067597,0.12549,183.66,183.46,34.13812226]
[1734966067801,0.12549,183.64,183.44,33.32104789]
[1734966067987,0.33643696,183.63,183.46,33.32104789]
[1734966068309,0.12549,183.62,183.47,0.12549]
[1734966068494,1.3616,183.6,183.47,0.12549]
[1734966068680,0.33643696,183.59,183.46,33.32104789]
[1734966069212,0.33643696,183.59,183.48,33.32104789]
[1734966069591,1.3618,183.58,183.46,33.32104789]
[1734966069796,1.3618,183.58,183.48,33.32104789]
[1734966069996,1.3618,183.58,183.49,0.12549]
[1734966070303,0.33643696,183.61,183.51,0.12549]
[1734966070502,0.46192696,183.66,183.46,33.32104789]
[1734966070719,0.46192696,183.66,183.48,33.32104789]
[1734966070902,0.46192696,183.66,183.49,0.12549]
[1734966071304,20.0,183.65,183.51,0.12549]
[1734966071499,0.33643696,183.64,183.51,0.12549]
[1734966071704,0.33643696,183.64,183.55,0.12549]
[1734966071906,0.33643696,183.66,183.55,0.12549]
[1734966072298,0.33643696,183.69,183.57,0.12549]
[1734966072493,6.0828,183.7,183.63,0.12549]
[1734966072805,1.6129,183.73,183.63,0.12549]
[1734966072983,0.33643696,183.72,183.63,0.12549]
[1734966073179,1.3606,183.75,183.63,0.12549]
[1734966073180,1.69703696,183.75,183.63,0.12549]
[1734966073610,4.41803696,183.75,183.63,0.12549]
[1734966073820,2.05672851,183.74,183.63,0.12549]
[1734966074010,21.5336,183.71,183.52,33.32104789]
[1734966074220,0.33643696,183.7,183.52,33.32104789]
[1734966074396,20.0,183.67,183.54,33.32104789]
[1734966074720,0.33643696,183.66,183.54,33.32104789]
[1734966075094,6.6352,183.65,183.44,0.81694026]
[1734966075292,1.6149,183.63,183.43,33.32104789]
[1734966075493,0.33643696,183.62,183.41,33.32104789]
[1734966075805,23.776884,183.59,183.35,33.32104789]
[1734966076127,0.33643696,183.58,183.35,33.32104789]
[1734966076323,0.12549,183.57,183.35,33.32104789]
[1734966076499,23.902374,183.53,183.33,33.32104789]
[1734966076699,1.5245,183.54,183.31,33.32104789]
[1734966076700,0.12549,183.51,183.31,33.32104789]
[1734966076900,6.6407,183.49,183.35,33.32104789]
[1734966077105,24.11332096,183.48,183.33,33.32104789]
[1734966077300,0.33643696,183.48,183.33,33.32104789]
[1734966077599,0.33643696,183.48,183.35,33.32104789]
[1734966078025,0.12549,183.47,183.35,33.32104789]
[1734966079215,0.12549,183.47,183.38,20.0]
[1734966079718,0.12549,183.47,183.35,33.32104789]
[1734966079905,20.0,183.46,183.35,33.32104789]
[1734966080096,0.33643696,183.45,183.35,33.32104789]
[1734966081500,0.12549,183.44,183.33,33.32104789]
[1734966081696,0.12549,183.42,183.29,33.32104789]
[1734966081908,0.33643696,183.41,183.27,33.32104789]
[1734966082101,0.33643696,183.44,183.35,33.32104789]
[1734966082402,20.0,183.46,183.37,33.32104789]
[1734966082813,0.33643696,183.48,183.37,33.32104789]
[1734966083034,6.6407,183.49,183.39,33.32104789]
[1734966083241,0.33643696,183.48,183.37,33.32104789]
[1734966083532,6.6407,183.49,183.42,33.32104789]
[1734966083708,23.776884,183.52,183.44,33.32104789]
[1734966084712,0.33643696,183.51,183.42,33.32104789]
[1734966084914,23.776884,183.52,183.42,33.32104789]
[1734966085433,23.776884,183.52,183.47,33.32104789]
[1734966085803,23.776884,183.52,183.44,33.32104789]
[1734966086007,23.776884,183.52,183.42,33.32104789]
[1734966086233,0.46192696,183.51,183.4,53.32104789]
[1734966086723,20.46192696,183.51,183.4,53.32104789]
[1734966086922,21.818424,183.54,183.42,33.32104789]
[1734966087139,0.33643696,183.53,183.44,33.32104789]
[1734966087306,0.33643696,183.55,183.44,33.32104789]
[1734966088027,0.12549,183.54,183.41,23.776884]
[1734966088236,0.12549,183.54,183.42,20.0]
[1734966088398,0.12549,183.54,183.4,53.32104789]
[1734966088595,0.12549,183.52,183.4,53.32104789]
[1734966088996,0.12549,183.47,183.35,33.32104789]
[1734966089219,20.0,183.48,183.37,33.32104789]
[1734966089502,0.33643696,183.47,183.37,33.32104789]
[1734966089726,0.33643696,183.47,183.34,13.6357]
[1734966089727,0.33643696,183.47,183.39,33.32104789]
[1734966090036,0.33643696,183.5,183.39,33.32104789]
[1734966090251,0.12549,183.49,183.39,33.32104789]
[1734966090454,20.0,183.53,183.41,33.32104789]
[1734966090755,0.33643696,183.52,183.43,33.32104789]
[1734966091054,0.33643696,183.52,183.37,13.6333]
[1734966091055,0.12549,183.51,183.41,33.32104789]
[1734966091558,0.33643696,183.55,183.45,33.32104789]
[1734966091917,0.33643696,183.55,183.47,33.32104789]
[1734966092150,0.33643696,183.55,183.29,120.6114]
[1734966092333,0.33643696,183.55,183.4,53.32104789]
[1734966092652,0.33643696,183.55,183.42,33.32104789]
[1734966092854,0.12549,183.52,183.3,13.6388]
[1734966093046,24.23881096,183.52,183.33,33.32104789]
[1734966093249,20.0,183.49,183.35,33.32104789]
[1734966093450,24.11332096,183.48,183.37,33.32104789]
[1734966093759,0.33643696,183.48,183.37,33.32104789]
[1734966094069,0.57191403,183.5,183.39,33.32104789]
[1734966094214,0.44642403,183.5,183.39,33.32104789]
[1734966094720,0.12549,183.49,183.41,33.32104789]
[1734966096144,0.10998707,183.5,183.41,33.32104789]
[1734966097155,0.10998707,183.5,183.43,33.32104789]
[1734966097318,0.10998707,183.5,183.49,23.776884]
[1734966097523,8.64254213,183.62,183.52,20.0]
[1734966097827,0.33643696,183.62,183.56,33.32104789]
[1734966098024,0.33643696,183.62,183.52,33.32104789]
[1734966098546,0.12549,183.59,183.48,53.32104789]
[1734966098751,0.46192696,183.59,183.48,53.32104789]
[1734966099429,25.60051096,183.59,183.48,33.32104789]
[1734966099654,0.12549,183.55,183.46,33.32104789]
[1734966099827,24.23881096,183.55,183.46,33.32104789]
[1734966100148,24.23881096,183.55,183.44,53.32104789]
[1734966100544,23.902374,183.51,183.42,33.32104789]
[1734966100742,23.902374,183.47,183.38,33.32104789]
[1734966100926,23.902374,183.47,183.34,33.32104789]
[1734966100927,0.12549,183.43,183.34,33.32104789]
[1734966101127,0.46192696,183.43,183.34,33.32104789]
[1734966101627,0.46192696,183.43,183.32,33.32104789]
[1734966102235,0.12549,183.41,183.32,33.32104789]
[1734966102551,0.12549,183.41,183.26,0.81782233]
[1734966102552,20.0,183.34,183.26,33.32104789]
[1734966102724,24.23881096,183.33,183.22,33.32104789]
[1734966103655,24.23881096,183.33,183.18,33.32104789]
[1734966103656,0.12549,183.25,183.18,33.32104789]
[1734966103951,0.46192696,183.25,183.18,33.32104789]
[1734966104530,20.0,183.26,183.18,33.32104789]
[1734966104758,20.0,183.31,183.22,33.32104789]
[1734966104933,0.33643696,183.3,183.22,33.32104789]
[1734966105138,0.33643696,183.3,183.18,0.81856571]
[1734966105139,20.0,183.31,183.24,33.32104789]
[1734966105359,0.46192696,183.3,183.24,33.32104789]
[1734966106224,0.12549,183.33,183.26,33.32104789]
[1734966106430,1.3631,183.4,183.3,33.32104789]
[1734966107030,1.3631,183.4,183.28,33.32104789]
[1734966107251,1.3631,183.4,183.3,33.32104789]
[1734966107426,0.33643696,183.43,183.32,33.32104789]
[1734966107427,6.1518,183.41,183.32,33.32104789]
[1734966107634,0.33643696,183.4,183.34,33.32104789]
[1734966108061,6.1518,183.41,183.36,33.32104789]
[1734966108367,1.3626,183.48,183.36,33.32104789]
[1734966108368,6.1518,183.47,183.36,33.32104789]
[1734966108529,6.48823696,183.47,183.35,33.32104789]
[1734966108730,6.48823696,183.47,183.33,33.32104789]
[1734966109139,0.12549,183.46,183.33,33.32104789]
[1734966109339,0.12549,183.44,183.33,33.32104789]
[1734966109637,0.12549,183.42,183.33,33.32104789]
[1734966109947,0.33643696,183.46,183.33,33.32104789]
[1734966110156,0.33643696,183.46,183.28,0.81801518]
[1734966110157,20.0,183.44,183.35,33.32104789]
[1734966110344,0.33643696,183.43,183.35,33.32104789]
[1734966110524,0.12549,183.42,183.33,33.32104789]
[1734966111131,0.12549,183.39,183.33,33.32104789]
[1734966111327,0.46192696,183.39,183.31,33.32104789]
[1734966111544,24.23881096,183.39,183.29,33.32104789]
[1734966111964,0.33643696,183.38,183.33,33.32104789]
[1734966112259,0.33643696,183.43,183.35,33.32104789]
[1734966112468,20.0,183.44,183.35,33.32104789]
[1734966112671,0.12549,183.42,183.31,33.32104789]
[1734966112843,0.12549,183.4,183.31,33.32104789]
[1734966113855,0.46192696,183.43,183.31,33.32104789]
[1734966114049,0.12549,183.39,183.31,33.32104789]
[1734966114368,0.33643696,183.4,183.33,33.32104789]
[1734966114543,20.0,183.4,183.33,33.32104789]
[1734966115167,6.1518,183.47,183.39,33.32104789]
[1734966115344,6.48823696,183.47,183.39,33.32104789]
[1734966115990,6.0393,183.53,183.43,33.32104789]
[1734966116272,6.0393,183.53,183.47,33.32104789]
[1734966116638,0.33643696,183.52,183.47,33.32104789]
[1734966116845,0.33643696,183.52,183.45,33.32104789]
[1734966117255,0.46192696,183.52,183.45,33.32104789]
[1734966117454,0.33643696,183.52,183.47,33.32104789]
[1734966117652,0.33643696,183.52,183.45,33.32104789]
[1734966118078,0.33643696,183.54,183.43,33.32104789]
[1734966118374,0.33643696,183.54,183.45,33.32104789]
[1734966118572,0.33643696,183.54,183.47,33.32104789]
[1734966119167,1.3618,183.57,183.47,33.32104789]
[1734966119168,0.33643696,183.56,183.47,33.32104789]
[1734966119371,0.12549,183.55,183.47,33.32104789]
[1734966119576,1.70699,183.51,183.32,13.6366]
[1734966119758,0.12549,183.49,183.39,33.32104789]
[1734966119943,0.12549,183.49,183.33,34.13878396]
[1734966119944,0.12549,183.47,183.36,33.32104789]
[1734966120149,0.12549,183.44,183.36,33.32104789]
[1734966120493,0.46192696,183.44,183.38,33.32104789]
[1734966120782,0.12549,183.44,183.38,33.32104789]
[1734966120955,0.33643696,183.44,183.38,33.32104789]
[1734966121154,0.33643696,183.47,183.38,33.32104789]
[1734966121474,0.12549,183.48,183.4,33.32104789]
[1734966121781,0.12549,183.48,183.38,33.32104789]
[1734966121782,25.60131096,183.48,183.38,33.32104789]
[1734966122083,6.65169,183.4,183.26,0.81793336]
[1734966122247,0.12549,183.34,183.23,33.32104789]
[1734966122448,0.46192696,183.34,183.23,33.32104789]
[1734966122677,0.46192696,183.34,183.25,33.32104789]
[1734966122977,0.46192696,183.34,183.23,33.32104789]
[1734966123187,0.12549,183.31,183.16,1.4949901]
[1734966123352,24.23881096,183.31,183.19,33.32104789]
[1734966123692,25.60261096,183.31,183.19,33.32104789]
[1734966123851,25.60261096,183.31,183.17,33.32104789]
[1734966123852,23.902374,183.27,183.17,33.32104789]
[1734966124188,0.33643696,183.26,183.17,33.32104789]
[1734966124355,0.12549,183.2,183.16,0.6766449]
[1734966124558,44.23881096,183.2,183.16,0.6766449]
[1734966124757,44.23881096,183.2,183.04,55.16837589]
[1734966125068,44.23881096,183.2,182.97,0.6766449]
[1734966125276,0.12549,183.17,182.97,0.6766449]
[1734966125461,0.12549,183.13,182.97,0.6766449]
[1734966125661,23.902374,183.09,182.97,33.99769279]
[1734966125869,0.12549,183.07,182.97,33.99769279]
[1734966126175,0.33643696,183.1,182.99,33.32104789]
[1734966126353,1.3649,183.16,183.01,33.32104789]
[1734966126554,0.33643696,183.16,183.06,20.0]
[1734966126787,0.33643696,183.2,183.09,33.32104789]